fUSD/lending_fUSD_20250417
["ID","MTS","AMOUNT","RATE_DAILY","PERIOD"]
[358221485,1744854684239,-761.0,0.00054795,120]
[358221486,1744854684249,-761.0,0.00054795,120]
[358221487,1744854684259,-761.0,0.00054795,120]
[358221488,1744854684383,-761.0,0.00054795,120]
[358221489,1744854684394,-761.0,0.00054795,120]
[358221490,1744854684404,-761.0,0.00054795,120]
[358221491,1744854684414,-761.0,0.00054795,120]
[358221492,1744854684424,-761.0,0.00054795,120]
[358221493,1744854684433,-761.0,0.00054795,120]
[358221494,1744854684443,-761.0,0.00054795,120]
[358221495,1744854684452,-761.0,0.00054795,120]
[358221496,1744854684462,-761.0,0.00054795,120]
[358221497,1744854684472,-761.0,0.00054795,120]
[358221498,1744854684482,-761.0,0.00054795,120]
[358221499,1744854684491,-761.0,0.00054795,120]
[358221500,1744854684502,-761.0,0.00054795,120]
[358221501,1744854684511,-761.0,0.00054795,120]
[358221502,1744854684520,-761.0,0.00054795,120]
[358221503,1744854684531,-761.0,0.00054795,120]
[358221504,1744854684540,-761.0,0.00054795,120]
[358221505,1744854684550,-761.0,0.00054795,120]
[358221506,1744854684560,-761.0,0.00054795,120]
[358221507,1744854684570,-761.0,0.00054795,120]
[358221508,1744854684580,-769.0,0.00054795,120]
[358221509,1744854684589,-500.0,0.00054795,120]
[358221510,1744854684599,-500.0,0.00054795,120]
[358221511,1744854684609,-500.0,0.00054795,120]
[358221512,1744854684618,-500.0,0.00054795,120]
[358221513,1744854684627,-500.0,0.00054795,120]
[358221514,1744854684635,-500.0,0.00054795,120]
[358221515,1744854684646,-418.48057594,0.00054795,120]
[358221516,1744854684655,-500.0,0.00054795,120]
[358221517,1744854684664,-500.0,0.00054795,120]
[358221518,1744854684674,-500.0,0.00054795,120]
[358221519,1744854684684,-500.0,0.00054795,120]
[358221520,1744854684693,-520.22841612,0.00054795,120]
[358221521,1744854684703,-520.22841612,0.00054795,120]
[358221522,1744854684713,-520.22841612,0.00054795,120]
[358221523,1744854684723,-520.22841612,0.00054795,120]
[358221524,1744854684732,-520.22841612,0.00054795,120]
[358221525,1744854684742,-520.22841612,0.00054795,120]
[358221526,1744854684752,-520.22841612,0.00054795,120]
[358221527,1744854684761,-520.22841612,0.00054795,120]
[358221528,1744854684771,-520.22841612,0.00054795,120]
[358221529,1744854684782,-520.22841612,0.00054795,120]
[358221530,1744854684791,-520.22841612,0.00054795,120]
[358221531,1744854684801,-520.22841612,0.00054795,120]
[358221532,1744854684811,-520.22841612,0.00054795,120]
[358221533,1744854684820,-520.22841612,0.00054795,120]
[358221534,1744854684830,-520.22841612,0.00054795,120]
[358221535,1744854684840,-520.22841612,0.00054795,120]
[358221536,1744854684850,-520.22841612,0.00054795,120]
[358221537,1744854684860,-520.22841612,0.00054795,120]
[358221538,1744854684870,-520.22841612,0.00054795,120]
[358221539,1744854684880,-520.22841612,0.00054795,120]
[358221540,1744854684890,-520.22841612,0.00054795,120]
[358221541,1744854684900,-520.22841612,0.00054795,120]
[358221542,1744854684910,-520.22841612,0.00054795,120]
[358221543,1744854684919,-520.22841612,0.00054795,120]
[358221544,1744854684930,-520.22841612,0.00054795,120]
[358221545,1744854684940,-520.22841612,0.00054795,120]
[358221546,1744854684950,-520.22841612,0.00054795,120]
[358221547,1744854684959,-520.22841612,0.00054795,120]
[358221548,1744854684969,-520.22841612,0.00054795,120]
[358221549,1744854684979,-520.22841612,0.00054795,120]
[358221550,1744854684989,-520.22841612,0.00054795,120]
[358221551,1744854684999,-520.22841612,0.00054795,120]
[358221552,1744854685009,-520.22841612,0.00054795,120]
[358221553,1744854685019,-520.22841612,0.00054795,120]
[358221554,1744854685028,-520.22841612,0.00054795,120]
[358221555,1744854685037,-520.22841612,0.00054795,120]
[358221556,1744854685047,-520.22841612,0.00054795,120]
[358221557,1744854685056,-520.22841612,0.00054795,120]
[358221558,1744854685067,-520.22841612,0.00054795,120]
[358221559,1744854685081,-520.22841612,0.00054795,120]
[358221560,1744854685091,-520.22841612,0.00054795,120]
[358221561,1744854685100,-520.22841612,0.00054795,120]
[358221562,1744854685111,-520.22841612,0.00054795,120]
[358221563,1744854685120,-520.22841612,0.00054795,120]
[358221564,1744854685129,-520.22841612,0.00054795,120]
[358221565,1744854685139,-520.22841612,0.00054795,120]
[358221566,1744854685149,-520.22841612,0.00054795,120]
[358221567,1744854685159,-520.22841612,0.00054795,120]
[358221568,1744854685169,-520.22841612,0.00054795,120]
[358221569,1744854685178,-520.22841612,0.00054795,120]
[358221570,1744854685188,-520.22841612,0.00054795,120]
[358221571,1744854685198,-520.22841612,0.00054795,120]
[358221572,1744854685208,-5000.0,0.000548,20]
[358221573,1744854685217,-150.0,0.000548,2]
[358221574,1744854685227,-400.0,0.00054812,14]
[358221575,1744854685237,-573.11080623,0.00054821,120]
[358221576,1744854685247,-500.0,0.0005485,2]
[358221577,1744854685256,-3427.57931909,0.00054874,31]
[358221578,1744854685266,-6200.0,0.000549,20]
[358221579,1744854685276,-150.0,0.000549,120]
[358221580,1744854685285,-500.0,0.00054905,2]
[358221581,1744854685295,-150.0,0.00054937,120]
[358221582,1744854685304,-500.0,0.0005496,2]
[358221583,1744854685315,-1000.0,0.00055,25]
[358221584,1744854685324,-200.0,0.00055,10]
[358221585,1744854685333,-272.01241728,0.00055,120]
[358221586,1744854685342,-597.515,0.00055,90]
[358221587,1744854685352,-500.0,0.00055015,2]
[358221588,1744854685362,-150.0,0.00055037,120]
[358221589,1744854685372,-1796.78,0.00055046,15]
[358221590,1744854685381,-513.13477859,0.00055047,120]
[358221591,1744854685391,-521.70618334,0.00055047,120]
[358221592,1744854685401,-500.0,0.00055047,120]
[358221593,1744854685411,-500.0,0.00055047,120]
[358221594,1744854685420,-500.0,0.00055047,120]
[358221595,1744854685430,-500.0,0.00055047,120]
[358221596,1744854685440,-500.0,0.00055047,120]
[358221597,1744854685449,-500.0,0.00055047,120]
[358221598,1744854685459,-500.0,0.00055047,30]
[358221599,1744854685468,-892.32,0.00055047,120]
[358221600,1744854685478,-203.73681959,0.00055047,120]
[358221601,1744854685487,-500.0,0.00055047,120]
[358221602,1744854685497,-517.07565342,0.00055047,120]
[358221603,1744854685506,-500.0,0.00055047,120]
[358221604,1744854685516,-500.0,0.00055047,120]
[358221605,1744854685525,-500.0,0.00055047,120]
[358221606,1744854685535,-539.09717219,0.00055047,120]
[358221607,1744854685544,-505.5429152,0.00055047,120]
[358221608,1744854685554,-516.07551839,0.00055047,120]
[358221609,1744854685564,-516.13900819,0.00055047,120]
[358221610,1744854685573,-509.63762185,0.00055047,120]
[358221611,1744854685583,-500.0,0.00055047,120]
[358221612,1744854685592,-500.0,0.00055047,120]
[358221613,1744854685602,-500.0,0.00055047,120]
[358221614,1744854685612,-500.0,0.00055047,120]
[358221615,1744854685622,-500.0,0.00055047,120]
[358221616,1744854685631,-613.90044417,0.00055047,120]
[358221617,1744854685641,-540.21725276,0.00055047,120]
[358221618,1744854685650,-599.83288254,0.00055047,120]
[358221619,1744854685660,-500.0,0.00055047,120]
[358221620,1744854685669,-530.96992669,0.00055047,120]
[358221621,1744854685679,-500.0,0.00055047,120]
[358221622,1744854685688,-744.6,0.00055047,120]
[358221623,1744854685698,-536.4735393,0.00055047,120]
[358221624,1744854685707,-552.1460124,0.00055047,120]
[358221625,1744854685717,-534.26075486,0.00055047,120]
[358221626,1744854685727,-528.36934901,0.00055047,120]
[358221627,1744854685736,-502.58135947,0.00055047,120]
[358221628,1744854685746,-500.0,0.00055047,120]
[358221629,1744854685756,-1240.73,0.00055047,120]
[358221630,1744854685764,-509.64838536,0.00055047,120]
[358221631,1744854685774,-290.87286673,0.00055047,120]
[358221632,1744854685783,-518.14240855,0.00055047,120]
[358221633,1744854685792,-500.0,0.00055047,120]
[358221634,1744854685801,-1855.34,0.00055047,120]
[358221635,1744854685810,-515.30948671,0.00055047,120]
[358221636,1744854685819,-828.54,0.00055047,120]
[358221637,1744854685828,-523.7994017,0.00055047,120]
[358221638,1744854685837,-512.14,0.00055047,120]
[358221639,1744854685847,-500.0,0.00055047,120]
[358221640,1744854685856,-500.0,0.00055047,120]
[358221641,1744854685867,-243.91583727,0.00055047,120]
[358221642,1744854685876,-519.25238743,0.00055047,120]
[358221643,1744854685886,-510.99111718,0.00055047,120]
[358221644,1744854685896,-515.13589769,0.00055047,120]
[358221645,1744854685906,-500.0,0.00055047,120]
[358221646,1744854685916,-222.27254847,0.00055047,120]
[358221647,1744854685926,-531.1297243,0.00055047,120]
[358221648,1744854685936,-512.28578727,0.00055047,120]
[358221649,1744854685945,-500.0,0.00055047,120]
[358221650,1744854685955,-500.0,0.00055047,120]
[358221651,1744854685964,-500.0,0.00055047,120]
[358221652,1744854685974,-856.04,0.00055047,120]
[358221653,1744854685983,-506.14,0.00055047,120]
[358221654,1744854685993,-500.0,0.00055047,120]
[358221655,1744854686002,-557.96704972,0.00055047,120]
[358221656,1744854686012,-500.0,0.00055047,120]
[358221657,1744854686022,-500.0,0.00055047,120]
[358221658,1744854686136,-500.0,0.00055047,120]
[358221659,1744854686146,-500.0,0.00055047,120]
[358221660,1744854686156,-500.0,0.00055047,120]
[358221661,1744854686166,-500.0,0.00055047,120]
[358221662,1744854686176,-500.0,0.00055047,120]
[358221663,1744854686185,-500.0,0.00055047,120]
[358221664,1744854686195,-500.0,0.00055047,120]
[358221665,1744854686204,-1000.0,0.00055047,120]
[358221666,1744854686213,-500.0,0.00055047,120]
[358221667,1744854686223,-500.0,0.00055047,120]
[358221668,1744854686232,-500.0,0.00055047,120]
[358221669,1744854686242,-500.0,0.00055047,120]
[358221670,1744854686252,-500.0,0.00055047,120]
[358221671,1744854686261,-502.7846726,0.00055047,7]
[358221672,1744854686270,-502.47494377,0.00055047,120]
[358221673,1744854686279,-343.92066238,0.00055047,120]
[358221674,1744854686289,-540.75638848,0.00055047,120]
[358221675,1744854686298,-500.0,0.00055047,120]
[358221676,1744854686308,-500.0,0.00055047,120]
[358221677,1744854686318,-500.0,0.00055047,120]
[358221678,1744854686327,-500.0,0.00055047,120]
[358221679,1744854686337,-500.0,0.00055047,120]
[358221680,1744854686347,-500.0,0.00055047,120]
[358221681,1744854686357,-547.85866441,0.00055047,120]
[358221682,1744854686367,-500.0,0.00055047,120]
[358221683,1744854686376,-500.0,0.00055047,120]
[358221684,1744854686386,-500.0,0.00055047,120]
[358221685,1744854686397,-500.0,0.00055047,120]
[358221686,1744854686407,-500.0,0.00055047,120]
[358221687,1744854686416,-525.18997272,0.00055047,120]
[358221688,1744854686426,-525.25297151,0.00055047,120]
[358221689,1744854686435,-500.0,0.00055047,120]
[358221690,1744854686445,-543.6469486,0.00055047,120]
[358221691,1744854686455,-500.0,0.00055047,120]
[358221692,1744854686464,-500.0,0.00055047,120]
[358221693,1744854686474,-500.0,0.00055047,120]
[358221694,1744854686485,-535.83042883,0.00055047,120]
[358221695,1744854686494,-500.0,0.00055047,120]
[358221696,1744854686504,-823.79,0.00055047,14]
[358221697,1744854686514,-500.0,0.00055047,120]
[358221698,1744854686524,-500.0,0.00055047,120]
[358221699,1744854686534,-507.24021794,0.00055047,120]
[358221700,1744854686544,-500.0,0.00055047,120]
[358221701,1744854686554,-500.0,0.00055047,120]
[358221702,1744854686564,-512.92247845,0.00055047,120]
[358221703,1744854686574,-500.0,0.00055047,120]
[358221704,1744854686584,-922.16,0.00055047,120]
[358221705,1744854686594,-500.0,0.00055047,120]
[358221706,1744854686603,-511.65313292,0.00055047,120]
[358221707,1744854686613,-510.91801004,0.00055047,120]
[358221708,1744854686623,-500.0,0.00055047,120]
[358221709,1744854686633,-512.18037259,0.00055047,120]
[358221710,1744854686643,-500.0,0.00055047,120]
[358221711,1744854686652,-500.0,0.00055047,120]
[358221712,1744854686662,-500.0,0.00055047,120]
[358221713,1744854686671,-513.43292297,0.00055047,120]
[358221714,1744854686681,-500.0,0.00055047,120]
[358221715,1744854686690,-2054.69,0.00055047,120]
[358221716,1744854686699,-500.0,0.00055047,120]
[358221717,1744854686709,-500.0,0.00055047,14]
[358221718,1744854686718,-508.13662111,0.00055047,120]
[358221719,1744854686728,-500.0,0.00055047,120]
[358221720,1744854686737,-500.0,0.00055047,120]
[358221721,1744854686746,-500.0,0.00055047,120]
[358221722,1744854686755,-501.91297261,0.00055047,120]
[358221723,1744854686765,-500.0,0.00055047,120]
[358221724,1744854686776,-500.0,0.00055047,120]
[358221725,1744854686786,-505.96482368,0.00055047,120]
[358221726,1744854686796,-500.0,0.00055047,120]
[358221727,1744854686805,-1853.75,0.00055047,120]
[358221728,1744854686815,-500.0,0.00055047,120]
[358221729,1744854686825,-512.59092817,0.00055047,120]
[358221730,1744854686834,-513.08559055,0.00055047,120]
[358221731,1744854686843,-510.23458928,0.00055047,120]
[358221732,1744854686853,-500.0,0.00055047,120]
[358221733,1744854686863,-500.0,0.00055047,120]
[358221734,1744854686873,-500.0,0.00055047,120]
[358221735,1744854686882,-500.0,0.00055047,120]
[358221736,1744854686891,-513.89,0.00055047,120]
[358221737,1744854686902,-568.91,0.00055047,120]
[358221738,1744854686911,-500.0,0.00055047,120]
[358221739,1744854686921,-725.69,0.00055047,120]
[358221740,1744854686931,-500.0,0.00055047,120]
[358221741,1744854686940,-300.0,0.00055047,120]
[358221742,1744854686949,-952.83,0.00055047,120]
[358221743,1744854686958,-500.0,0.00055047,120]
[358221744,1744854686968,-989.81,0.00055047,120]
[358221745,1744854686978,-925.23,0.00055047,120]
[358221746,1744854686988,-500.0,0.00055047,120]
[358221747,1744854686997,-500.0,0.00055047,120]
[358221748,1744854687006,-1106.07,0.00055047,120]
[358221749,1744854687015,-500.0,0.00055047,120]
[358221750,1744854687026,-500.0,0.00055047,120]
[358221751,1744854687037,-611.82490915,0.00055047,120]
[358221752,1744854687046,-500.0,0.00055047,120]
[358221753,1744854687056,-500.0,0.00055047,120]
[358221754,1744854687065,-500.0,0.00055047,120]
[358221755,1744854687079,-500.0,0.00055047,120]
[358221756,1744854687090,-500.0,0.00055047,120]
[358221757,1744854687099,-2000.0,0.00055047,2]
[358221758,1744854687109,-500.0,0.00055047,120]
[358221759,1744854687118,-500.0,0.00055047,120]
[358221760,1744854687128,-500.0,0.00055047,120]
[358221761,1744854687137,-500.0,0.00055047,120]
[358221762,1744854687146,-500.0,0.00055047,120]
[358221763,1744854687156,-548.1212708,0.00055047,120]
[358221764,1744854687165,-500.0,0.00055047,120]
[358221765,1744854687176,-1069.21,0.00055047,120]
[358221766,1744854687185,-500.0,0.00055047,120]
[358221767,1744854687195,-500.0,0.00055047,120]
[358221768,1744854687204,-512.71834039,0.00055047,120]
[358221769,1744854687213,-856.59,0.00055047,120]
[358221770,1744854687222,-505.8175411,0.00055047,120]
[358221771,1744854687231,-611.73,0.00055047,120]
[358221772,1744854687240,-500.0,0.00055047,120]
[358221773,1744854687249,-252.83920486,0.00055047,120]
[358221774,1744854687258,-500.0,0.00055047,120]
[358221775,1744854687267,-1315.04,0.00055047,120]
[358221776,1744854687277,-587.05,0.00055047,120]
[358221777,1744854687286,-500.0,0.00055047,120]
[358221778,1744854687295,-500.0,0.00055047,120]
[358221779,1744854687305,-515.91825416,0.00055047,120]
[358221780,1744854687314,-500.0,0.00055047,7]
[358221781,1744854687328,-500.0,0.00055047,120]
[358221782,1744854687338,-1412.87,0.00055047,120]
[358221783,1744854687347,-500.0,0.00055047,120]
[358221784,1744854687356,-518.58277769,0.00055047,120]
[358221785,1744854687365,-508.35455015,0.00055047,120]
[358221786,1744854687374,-859.78,0.00055047,120]
[358221787,1744854687384,-500.0,0.00055047,120]
[358221788,1744854687393,-879.62,0.00055047,120]
[358221789,1744854687402,-512.83154956,0.00055047,120]
[358221790,1744854687412,-1072.61,0.00055047,120]
[358221791,1744854687421,-500.0,0.00055047,120]
[358221792,1744854687431,-500.0,0.00055047,120]
[358221793,1744854687440,-603.18935094,0.00055047,120]
[358221794,1744854687449,-500.0,0.00055047,120]
[358221795,1744854687458,-500.0,0.00055047,120]
[358221796,1744854687467,-155.56789674,0.00055047,120]
[358221797,1744854687477,-500.0,0.00055047,120]
[358221798,1744854687486,-532.5431743,0.00055047,120]
[358221799,1744854687495,-517.62393945,0.00055047,120]
[358221800,1744854687504,-570.17200174,0.00055047,120]
[358221801,1744854687514,-500.0,0.00055047,120]
[358221802,1744854687523,-509.91461865,0.00055047,120]
[358221803,1744854687533,-500.0,0.00055047,120]
[358221804,1744854687543,-500.0,0.00055047,120]
[358221805,1744854687552,-500.0,0.00055047,120]
[358221806,1744854687563,-500.0,0.00055047,120]
[358221807,1744854687572,-752.66,0.00055047,120]
[358221808,1744854687582,-500.0,0.00055047,120]
[358221809,1744854687591,-500.0,0.00055047,120]
[358221810,1744854687602,-500.0,0.00055047,120]
[358221811,1744854687611,-630.02829636,0.00055047,120]
[358221812,1744854687620,-500.0,0.00055047,120]
[358221813,1744854687630,-500.0,0.00055047,120]
[358221814,1744854687639,-1516.04,0.00055047,120]
[358221815,1744854687650,-500.0,0.00055047,120]
[358221816,1744854687659,-404.42093281,0.00055047,120]
[358221817,1744854687669,-500.0,0.00055047,120]
[358221818,1744854687678,-500.0,0.00055047,120]
[358221819,1744854687687,-388.72199841,0.00055047,120]
[358221820,1744854687697,-500.0,0.00055047,120]
[358221821,1744854687706,-1000.0,0.00055047,120]
[358221822,1744854687715,-500.0,0.00055047,120]
[358221823,1744854687725,-500.0,0.00055047,120]
[358221824,1744854687735,-820.35,0.00055047,120]
[358221825,1744854687744,-574.24,0.00055047,120]
[358221826,1744854687753,-500.0,0.00055057,120]
[358221827,1744854687763,-500.0,0.00055057,120]
[358221828,1744854687772,-500.0,0.00055057,120]
[358221829,1744854687782,-500.0,0.00055057,120]
[358221830,1744854687791,-773.38,0.00055057,120]
[358221831,1744854687800,-500.0,0.00055057,120]
[358221832,1744854687810,-1075.75,0.00055057,120]
[358221833,1744854687819,-676.84,0.00055057,120]
[358221834,1744854687829,-524.91300795,0.00055057,120]
[358221835,1744854687838,-601.03705955,0.00055068,120]
[358221836,1744854687848,-633.04,0.00055068,120]
[358221837,1744854687858,-741.12,0.00055068,120]
[358221838,1744854687868,-500.0,0.00055068,120]
[358221839,1744854687878,-1165.78,0.00055068,120]
[358221840,1744854687888,-609.86,0.00055068,120]
[358221841,1744854687898,-603.6,0.00055068,30]
[358221842,1744854687908,-500.0,0.00055068,120]
[358221843,1744854687917,-716.81,0.00055068,120]
[358221844,1744854687926,-1153.37,0.00055068,120]
[358221845,1744854687936,-1067.9,0.00055068,8]
[358221846,1744854687946,-834.1,0.00055068,120]
[358221847,1744854687955,-709.13,0.00055068,120]
[358221848,1744854687965,-500.0,0.00055068,120]
[358221849,1744854687975,-507.6,0.00055068,120]
[358221850,1744854687984,-631.81,0.00055068,120]
[358221851,1744854687993,-500.0,0.00055068,120]
[358221852,1744854688003,-500.0,0.00055068,120]
[358221853,1744854688012,-599.58,0.00055068,120]
[358221854,1744854688022,-500.0,0.00055068,120]
[358221855,1744854688031,-737.91,0.00055068,120]
[358221856,1744854688040,-587.84,0.00055068,120]
[358221857,1744854688050,-706.998014,0.00055068,120]
[358221858,1744854688059,-154.386344,0.00055068,120]
[358221859,1744854688069,-500.0,0.00055068,120]
[358221860,1744854688082,-153.090261,0.00055068,120]
[358221861,1744854688092,-365.925591,0.00055068,120]
[358221862,1744854688101,-1258.89,0.00055068,120]
[358221863,1744854688110,-799.91,0.00055068,120]
[358221864,1744854688120,-500.0,0.00055068,120]
[358221865,1744854688130,-500.0,0.00055068,120]
[358221866,1744854688139,-500.0,0.00055068,120]
[358221867,1744854688151,-3015.912726,0.00055068,120]
[358221868,1744854688160,-500.0,0.00055068,120]
[358221869,1744854688170,-500.0,0.00055068,120]
[358221870,1744854688179,-1009.73,0.00055068,120]
[358221871,1744854688188,-500.0,0.00055068,120]
[358221872,1744854688198,-500.0,0.00055068,120]
[358221873,1744854688207,-500.0,0.00055068,120]
[358221874,1744854688216,-500.0,0.00055068,120]
[358221875,1744854688226,-526.55,0.00055068,120]
[358221876,1744854688236,-500.0,0.00055068,120]
[358221877,1744854688245,-500.0,0.00055068,120]
[358221878,1744854688255,-885.35,0.00055068,120]
[358221879,1744854688264,-500.0,0.00055068,120]
[358221880,1744854688274,-722.16,0.00055068,120]
[358221881,1744854688284,-377.71137595,0.00055068,120]
[358221882,1744854688295,-730.39,0.00055068,118]
[358221883,1744854688304,-500.0,0.00055068,120]
[358221884,1744854688313,-958.07,0.00055068,120]
[358221885,1744854688323,-500.0,0.00055068,120]
[358221886,1744854688333,-1222.41,0.00055068,120]
[358221887,1744854688342,-500.0,0.00055068,120]
[358221888,1744854688352,-592.51,0.00055068,120]
[358221889,1744854688361,-398.06099421,0.00055068,120]
[358221890,1744854688370,-500.0,0.00055068,120]
[358221891,1744854688380,-500.0,0.00055068,120]
[358221892,1744854688389,-309.42212623,0.00055068,120]
[358221893,1744854688402,-500.0,0.00055068,120]
[358221894,1744854688411,-500.0,0.00055068,120]
[358221895,1744854688421,-500.0,0.00055068,120]
[358221896,1744854688432,-166.2842579,0.00055068,120]
[358221897,1744854688442,-500.0,0.00055068,120]
[358221898,1744854688452,-500.0,0.00055068,120]
[358221899,1744854688461,-501.46,0.00055068,120]
[358221900,1744854688471,-500.0,0.00055068,120]
[358221901,1744854688481,-651.32,0.00055068,120]
[358221902,1744854688490,-500.0,0.00055068,120]
[358221903,1744854688499,-1969.24,0.00055068,120]
[358221904,1744854688509,-547.24,0.00055068,120]
[358221905,1744854688518,-500.0,0.00055068,120]
[358221906,1744854688528,-1305.81,0.00055068,35]
[358221907,1744854688537,-500.0,0.00055068,120]
[358221908,1744854688547,-500.0,0.00055068,120]
[358221909,1744854688556,-1067.01,0.00055068,120]
[358221910,1744854688566,-824.88,0.00055068,120]
[358221911,1744854688575,-155.383724,0.00055068,120]
[358221912,1744854688584,-1172.02,0.00055068,120]
[358221913,1744854688594,-500.0,0.00055068,120]
[358221914,1744854688604,-1117.56,0.00055068,120]
[358221915,1744854688613,-500.0,0.00055068,120]
[358221916,1744854688623,-643.69935557,0.00055068,120]
[358221917,1744854688633,-1357.6,0.00055068,120]
[358221918,1744854688651,-500.0,0.00055068,120]
[358221919,1744854688661,-500.0,0.00055068,120]
[358221920,1744854688671,-1824.95,0.00055068,120]
[358221921,1744854688681,-839.32,0.00055068,120]
[358221922,1744854688691,-1069.69,0.00055068,120]
[358221923,1744854688701,-500.0,0.00055068,120]
[358221924,1744854688711,-500.0,0.0005507,2]
[358221925,1744854688720,-844.0,0.00055094,30]
[358221926,1744854688730,-500.0,0.00055125,2]
[358221927,1744854688739,-150.0,0.00055174,120]
[358221928,1744854688748,-819.69979511,0.0005518,2]
[358221929,1744854688759,-2000.0,0.00055222,3]
[358221930,1744854688769,-2000.0,0.00055222,3]
[358221931,1744854688778,-150.0,0.00055311,120]
[358221932,1744854688787,-500.0,0.00055321,32]
[358221933,1744854688796,-476.54847571,0.00055321,120]
[358221934,1744854688805,-500.0,0.00055321,120]
[358221935,1744854688815,-500.0,0.00055321,120]
[358221936,1744854688823,-500.0,0.00055321,120]
[358221937,1744854688833,-500.0,0.00055321,120]
[358221938,1744854688841,-500.0,0.00055321,120]
[358221939,1744854688850,-500.0,0.00055321,30]
[358221940,1744854688860,-892.32,0.00055321,120]
[358221941,1744854688871,-500.0,0.00055321,120]
[358221942,1744854688879,-500.0,0.00055321,120]
[358221943,1744854688888,-500.0,0.00055321,120]
[358221944,1744854688898,-537.21640441,0.00055321,120]
[358221945,1744854688907,-500.0,0.00055321,120]
[358221946,1744854688916,-500.0,0.00055321,120]
[358221947,1744854688925,-500.0,0.00055321,120]
[358221948,1744854688934,-500.0,0.00055321,120]
[358221949,1744854688944,-500.0,0.00055321,120]
[358221950,1744854688953,-500.0,0.00055321,120]
[358221951,1744854688962,-381.52094104,0.00055321,120]
[358221952,1744854688971,-744.6,0.00055321,120]
[358221953,1744854688980,-500.0,0.00055321,120]
[358221954,1744854688990,-1240.73,0.00055321,120]
[358221955,1744854688999,-500.0,0.00055321,120]
[358221956,1744854689009,-1855.34,0.00055321,120]
[358221957,1744854689018,-828.54,0.00055321,120]
[358221958,1744854689027,-512.14,0.00055321,120]
[358221959,1744854689036,-500.0,0.00055321,120]
[358221960,1744854689046,-500.0,0.00055321,120]
[358221961,1744854689055,-500.0,0.00055321,120]
[358221962,1744854689064,-500.0,0.00055321,120]
[358221963,1744854689076,-500.0,0.00055321,120]
[358221964,1744854689086,-500.0,0.00055321,120]
[358221965,1744854689095,-856.04,0.00055321,120]
[358221966,1744854689104,-506.14,0.00055321,120]
[358221967,1744854689114,-629.51556479,0.00055321,120]
[358221968,1744854689123,-500.0,0.00055321,120]
[358221969,1744854689133,-500.0,0.00055321,120]
[358221970,1744854689142,-500.0,0.00055321,120]
[358221971,1744854689152,-330.10881233,0.00055321,120]
[358221972,1744854689162,-500.0,0.00055321,120]
[358221973,1744854689171,-500.0,0.00055321,120]
[358221974,1744854689180,-500.0,0.00055321,120]
[358221975,1744854689189,-500.0,0.00055321,120]
[358221976,1744854689198,-500.0,0.00055321,120]
[358221977,1744854689207,-541.90440871,0.00055321,120]
[358221978,1744854689217,-500.0,0.00055321,120]
[358221979,1744854689226,-500.0,0.00055321,120]
[358221980,1744854689236,-532.48640183,0.00055321,120]
[358221981,1744854689245,-500.0,0.00055321,120]
[358221982,1744854689254,-500.0,0.00055321,120]
[358221983,1744854689263,-500.0,0.00055321,120]
[358221984,1744854689272,-500.0,0.00055321,120]